bitfinex-derivatives/quotes_ETHF0:USTF0_20251210
["timestamp","ask_amount","ask_price","bid_price","bid_amount"]
[1765352068731,1.4361909,3318.8,3318.7,0.7193]
[1765352069037,1.433,3318.5,3318.4,0.00452467]
[1765352069226,1.433,3318.5,3318.4,0.72382467]
[1765352069935,1.433,3318.5,3318.4,0.00452467]
[1765352070437,2.12513853,3318.5,3318.4,0.00452467]
[1765352070828,2.12513853,3318.5,3318.4,1.43282467]
[1765352071336,2.12513853,3318.5,3318.4,0.00452467]
[1765352073435,2.12513853,3318.5,3318.4,0.72382467]
[1765352073839,2.12513853,3318.5,3318.4,1.43282467]
[1765352076036,1.38913853,3318.5,3318.4,1.43282467]
[1765352076246,0.697,3318.5,3318.4,1.43282467]
[1765352077131,1.38913853,3318.5,3318.4,1.43282467]
[1765352077631,1.433,3318.5,3318.4,1.43282467]
[1765352077830,2.12513853,3318.5,3318.4,1.43282467]
[1765352080438,0.69213853,3318.5,3318.4,1.43282467]
[1765352080642,0.0031909,3318.8,3318.7,1.4283]
[1765352080943,0.0031909,3318.8,3318.7,5.71943729]
[1765352084838,0.00452467,3319.1,3318.8,0.15065]
[1765352085047,0.00452467,3319.1,3319.0,1.8451]
[1765352085843,0.00768281,3319.1,3319.0,1.8451]
[1765352086849,0.00768281,3319.1,3319.0,1.99575]
[1765352088742,0.00768281,3319.1,3319.0,2.92766691]
[1765352088940,1.26450718,3319.5,3319.4,2.36021691]
[1765352089749,1.26450718,3319.5,3319.4,2.51084691]
[1765352089941,1.26781332,3319.5,3319.4,2.51084691]
[1765352091644,0.00452467,3319.8,3319.4,2.51084691]
[1765352091846,3.2078,3320.1,3320.0,1.8451]
[1765352092053,3.2078,3320.1,3320.0,2.77701691]
[1765352092850,3.21071955,3320.1,3320.0,2.77701691]
[1765352093042,0.00291955,3320.1,3320.0,2.77701691]
[1765352093244,0.00291955,3320.1,3320.0,2.92761691]
[1765352095052,0.74051955,3320.1,3320.0,2.92761691]
[1765352095248,0.00291955,3320.1,3320.0,2.92761691]
[1765352097257,0.74051955,3320.1,3320.0,2.92761691]
[1765352097553,1.45301955,3320.1,3320.0,5.71861691]
[1765352097755,0.74051955,3320.1,3320.0,5.71861691]
[1765352098056,0.00291955,3320.1,3320.0,6.14421691]
[1765352100152,0.74051955,3320.1,3320.0,6.14421691]
[1765352100552,1.45301955,3320.1,3320.0,5.2123]
[1765352100752,1.45301955,3320.1,3320.0,4.0777]
[1765352101152,1.45301955,3320.1,3320.0,4.7969]
[1765352101352,0.00291955,3320.1,3320.0,6.15441691]
[1765352101754,0.00452467,3320.4,3320.3,1.58159]
[1765352101950,0.00452467,3320.4,3320.3,2.51350691]
[1765352102855,0.00452467,3320.4,3320.3,2.51690649]
[1765352102856,0.00686016,3320.4,3320.3,2.51690649]
[1765352104653,0.00686016,3320.4,3320.3,1.58498958]
[1765352104852,0.00686016,3320.4,3320.3,2.51690649]
[1765352109568,0.68896016,3320.4,3320.3,1.58498958]
[1765352110167,0.00686016,3320.4,3320.3,2.51690649]
[1765352110370,1.38926016,3320.4,3320.3,1.58498958]
[1765352110568,0.68896016,3320.4,3320.3,1.58498958]
[1765352111569,1.38926016,3320.4,3320.3,0.86578958]
[1765352111768,1.38926016,3320.4,3320.3,1.59738958]
[1765352112859,0.68896016,3320.4,3320.3,1.59738958]
[1765352113060,0.00686016,3320.4,3320.3,2.52930649]
[1765352113264,0.00686016,3320.4,3320.3,1.59738958]
[1765352114376,1.38926016,3320.4,3320.3,1.59738958]
[1765352116172,1.38926016,3320.4,3320.3,0.15398958]
[1765352116375,1.38926016,3320.4,3320.3,0.88508958]
[1765352116873,1.38926016,3320.4,3320.3,1.61668958]
[1765352117970,1.38926016,3320.4,3320.3,0.88508958]
[1765352119475,0.00686016,3320.4,3320.3,1.61668958]
[1765352119684,0.68896016,3320.4,3320.3,1.61668958]
[1765352121275,1.38926016,3320.4,3320.3,1.61668958]
[1765352123884,0.68896016,3320.4,3320.3,1.61668958]
[1765352124285,1.38196016,3320.4,3320.3,0.15398958]
[1765352124887,2.07106557,3320.4,3320.3,0.15398958]
[1765352126587,2.07106557,3320.4,3320.3,0.87248958]
[1765352127787,2.07106557,3320.4,3320.3,0.15398958]
[1765352129689,2.07106557,3320.4,3320.3,0.87248958]
[1765352129882,0.69596557,3320.4,3320.3,2.48330649]
[1765352130078,0.00686016,3320.4,3320.3,2.48330649]
[1765352131294,0.71486016,3320.4,3320.3,2.48330649]
[1765352132388,1.40786016,3320.4,3320.3,2.48330649]
[1765352132889,1.40786016,3320.4,3320.3,1.55138958]
[1765352133187,1.40786016,3320.4,3320.3,0.87248958]
[1765352133493,1.40786016,3320.4,3320.3,1.55138958]
[1765352133695,0.00686016,3320.4,3320.3,2.48330649]
[1765352134298,0.71486016,3320.4,3320.3,2.48330649]
[1765352135095,0.00686016,3320.4,3320.3,2.48330649]
[1765352135294,0.71486016,3320.4,3320.3,2.48330649]
[1765352136389,3.2078,3321.1,3320.5,1.8226]
[1765352136696,0.708,3320.8,3320.7,5.68768691]
[1765352137390,0.71169739,3320.8,3320.7,5.68768691]
[1765352137888,1.40469739,3320.8,3320.7,4.75577]
[1765352138494,1.40469739,3320.8,3320.7,4.07687]
[1765352139095,2.38635247,3320.8,3320.7,0.15057]
[1765352141397,1.8361,3320.5,3320.4,0.00451779]
[1765352141702,2.5350943,3320.5,3320.4,0.00451779]
[1765352142205,2.53517272,3320.5,3320.4,0.00451779]
[1765352143000,2.53517272,3320.5,3320.4,0.72301779]
[1765352143601,2.53517272,3320.5,3320.4,0.00451779]
[1765352145301,2.53517272,3320.5,3320.4,0.72301779]
[1765352145503,2.53517272,3320.5,3320.4,0.00451779]
[1765352145803,2.81787428,3320.5,3320.4,0.00451779]
[1765352151305,3.74952789,3320.5,3320.4,0.00451779]
[1765352151909,2.81787428,3320.5,3320.4,0.00451779]
[1765352163110,2.11880156,3320.5,3320.4,0.00451779]
[1765352163310,2.8172077,3320.5,3320.4,0.00451779]
[1765352165713,1.4347,3319.9,3319.8,3.2078]
[1765352165920,0.7192,3319.4,3319.3,4.80723]
[1765352166118,1.4347,3319.4,3319.3,4.80723]
[1765352166310,0.7192,3319.4,3319.3,4.80723]
[1765352166614,0.4399,3320.0,3319.3,4.80723]
[1765352166817,1.42041774,3320.0,3319.3,4.81082775]
[1765352167018,2.13285582,3319.9,3319.8,0.739]
[1765352167412,2.13285582,3319.9,3319.3,3.36202775]
[1765352167716,0.69815582,3319.8,3319.3,3.36202775]
[1765352168017,1.13805582,3320.0,3319.3,3.36202775]
[1765352168610,0.7027,3319.4,3319.3,4.76032775]
[1765352169419,0.69815582,3319.9,3319.3,4.76032775]
[1765352169615,1.13805582,3320.0,3319.3,4.76032775]
[1765352171119,1.4251,3319.4,3319.3,4.76032775]
[1765352171310,1.4251,3319.4,3319.3,4.60969775]
[1765352171515,1.4251,3319.4,3319.3,3.21139775]
[1765352172117,1.4251,3319.4,3319.3,3.91039775]
[1765352172511,1.4251,3319.4,3319.3,3.21139775]
[1765352172707,1.4251,3319.4,3319.3,0.00359775]
[1765352172708,5.33100034,3319.4,3319.3,0.00359775]
[1765352172915,5.61333655,3319.4,3319.3,0.00359775]
[1765352173511,1.4251,3319.1,3319.0,0.00451779]
[1765352173711,2.12320034,3319.1,3319.0,0.00451779]
[1765352174312,2.12320034,3319.1,3319.0,0.00704722]
[1765352174521,1.4251,3319.1,3319.0,0.00704722]
[1765352177422,0.7027,3319.1,3319.0,1.40534722]
[1765352177614,1.4251,3319.1,3319.0,1.40534722]
[1765352178015,1.4251,3319.1,3319.0,0.70604722]
[1765352178617,1.4251,3319.1,3319.0,0.00704722]
[1765352181016,1.4251,3318.6,3318.5,3.2078]
[1765352181921,1.4251,3318.6,3318.5,3.9068]
[1765352182127,1.4251,3318.9,3318.8,1.3983]
[1765352182924,0.7027,3318.9,3318.8,1.3983]
[1765352187121,4.6157,3319.3,3319.2,1.4217]
[1765352187325,4.61959793,3319.3,3319.2,1.4217]
[1765352187527,5.31209793,3319.3,3319.2,1.4217]
[1765352190636,5.31209793,3319.3,3319.2,0.7205]
[1765352194540,0.7154,3318.8,3318.7,1.57236]
[1765352195339,1.4079,3318.8,3318.7,1.57236]
[1765352196345,0.7154,3318.8,3318.7,1.57236]
[1765352196836,0.7154,3319.0,3318.9,1.4217]
[1765352197343,4.6157,3319.3,3319.2,1.4217]
[1765352197543,5.59583799,3319.3,3319.2,1.4217]
[1765352198041,5.59583799,3319.3,3319.2,0.7205]
[1765352198545,5.59583799,3319.3,3318.7,0.15066]
[1765352198744,2.38803799,3319.2,3319.1,0.7205]
[1765352199537,2.38803799,3319.2,3319.1,1.4217]
[1765352201446,2.38803799,3319.2,3319.1,0.7205]
[1765352201849,0.7154,3318.8,3318.7,1.57236]
[1765352202147,1.4079,3318.8,3318.7,1.57236]
[1765352202650,2.10722262,3318.8,3318.7,1.57236]
[1765352204651,1.41472262,3318.8,3318.7,1.57236]
[1765352205549,2.10722262,3318.8,3318.7,1.57236]
[1765352205754,2.10722262,3318.8,3318.7,0.15066]
[1765352206249,1.4079,3318.6,3318.5,3.21152982]
[1765352206450,2.10722262,3318.6,3318.5,4.63322982]
[1765352207549,1.41472262,3318.6,3318.5,4.63322982]
[1765352208152,2.10722262,3318.6,3318.5,4.63322982]
[1765352215259,1.41472262,3318.6,3318.5,4.63322982]
[1765352216059,1.41472262,3318.6,3318.5,4.78389982]
[1765352216762,2.11212262,3318.6,3318.5,4.78389982]
[1765352217264,2.11212262,3318.6,3318.5,4.08269982]
[1765352218560,3.04469991,3318.6,3318.5,3.36219982]
[1765352219262,3.04469991,3318.6,3318.5,3.21152982]
[1765352220163,2.11212262,3318.6,3318.5,4.64142982]
[1765352220764,2.11212262,3318.6,3318.5,3.90162982]
[1765352221160,0.69932262,3318.6,3318.5,5.05652982]
[1765352221368,0.69932262,3318.8,3318.7,1.4299]
[1765352221560,2.39492319,3319.3,3319.2,1.4299]
[1765352222562,2.39492319,3319.3,3319.2,0.6901]
[1765352222963,2.39492319,3319.3,3319.2,1.4299]
[1765352223266,1.69752319,3319.3,3319.2,1.4299]
[1765352224166,2.39492319,3319.3,3319.2,1.4299]
[1765352224366,2.39492319,3319.3,3319.2,0.6901]
[1765352225166,2.39492319,3319.3,3319.2,1.4299]
[1765352229571,0.98192319,3319.3,3319.2,1.4299]
[1765352229873,3.21231779,3319.4,3319.3,1.4299]
[1765352230071,3.9080882,3319.4,3319.3,2.36247729]
[1765352230273,0.7002882,3319.4,3319.3,2.36247729]
[1765352230462,0.00451779,3319.4,3319.3,2.36247729]
[1765352231274,1.4684,3319.0,3318.9,4.73825]
[1765352231478,0.7432,3319.0,3318.9,4.73825]
[1765352234077,1.4684,3319.0,3318.9,4.73825]
[1765352234579,1.8816,3319.0,3318.9,4.73825]
[1765352235578,1.4684,3319.0,3318.9,4.73825]
[1765352236979,1.8816,3319.0,3318.9,3.35845]
[1765352237380,1.8816,3319.0,3318.9,4.03575]
[1765352237680,1.4684,3319.0,3318.9,4.73825]
[1765352237877,5.61329508,3319.4,3319.3,0.6773]
[1765352238074,5.37536032,3319.4,3319.3,1.3798]
[1765352238480,4.65016032,3319.4,3319.3,1.3798]
[1765352238980,3.90696032,3319.4,3319.3,1.3798]
[1765352239782,4.65016032,3319.4,3319.3,1.3798]
[1765352241887,3.90696032,3319.4,3319.3,1.53043]
[1765352242180,0.00451779,3319.4,3319.3,4.73823]
[1765352242677,0.69448036,3320.2,3320.1,1.3798]
[1765352242985,3.951,3320.3,3320.2,1.3798]
[1765352243683,4.6762,3320.3,3320.2,1.3798]
[1765352247187,3.951,3320.3,3320.2,2.31237729]
[1765352247387,3.2078,3320.3,3320.2,2.31237729]
[1765352247585,1.47081779,3320.6,3320.5,1.4171]
[1765352248090,0.00451779,3320.6,3320.5,2.76497729]
[1765352249292,0.00451779,3320.6,3320.5,2.91555729]
[1765352252088,0.00451779,3320.6,3320.5,1.96468]
[1765352252395,0.00451779,3320.6,3320.5,2.89725729]
[1765352254494,0.72711779,3320.6,3320.5,1.96468]
[1765352254692,0.00451779,3320.6,3320.5,1.96468]
[1765352255399,0.72711779,3320.6,3320.5,1.56768]
[1765352257293,0.00451779,3320.6,3320.5,2.89725729]
[1765352258795,0.72711779,3320.6,3320.5,2.89725729]
[1765352258994,1.47081779,3320.6,3320.5,1.56768]
[1765352259296,0.72711779,3320.6,3320.5,1.56768]
[1765352260606,0.00451779,3320.6,3320.5,1.96468]
[1765352261191,1.47081779,3320.6,3320.5,1.56768]
[1765352261998,0.72711779,3320.6,3320.5,1.56768]
[1765352262501,0.00451779,3320.6,3320.5,1.96468]
[1765352263401,1.47081779,3320.6,3320.5,1.56768]
[1765352264400,1.47081779,3320.6,3320.5,0.15058]
[1765352264600,1.47081779,3320.6,3320.5,0.87668]
[1765352264799,1.47081779,3320.6,3320.5,1.56768]
[1765352265103,0.00451779,3320.6,3320.5,2.89725729]
[1765352265303,0.72711779,3320.6,3320.5,2.89725729]
[1765352266898,1.47081779,3320.6,3320.5,1.56768]
[1765352268394,0.72711779,3320.6,3320.5,1.56768]
[1765352268596,0.72711779,3320.6,3320.5,1.96468]
[1765352268799,0.00451779,3320.6,3320.5,1.96468]
[1765352270800,1.47081779,3320.6,3320.5,1.56768]
[1765352271005,1.47081779,3320.6,3320.5,0.87668]
[1765352272896,2.44469982,3320.6,3320.5,0.15058]
[1765352274497,2.44469982,3320.6,3320.5,0.87668]
[1765352275005,2.44469982,3320.6,3320.5,1.59978]
[1765352275898,2.44469982,3320.6,3320.5,0.87668]
[1765352277602,2.44469982,3320.6,3320.5,1.59978]
[1765352277803,2.44469982,3320.6,3320.5,0.87668]
[1765352279010,2.44469982,3320.6,3320.5,1.59978]
[1765352280510,2.44469982,3320.6,3320.5,0.87668]
[1765352281809,2.44469982,3320.6,3320.5,0.15058]
[1765352282212,1.4411,3320.3,3320.2,3.9204]
[1765352282512,1.4411,3320.3,3320.2,3.2078]
[1765352283111,1.4411,3320.3,3320.2,3.9204]
[1765352283306,2.13288699,3320.3,3320.2,3.9204]
[1765352283710,2.13288699,3320.3,3320.2,4.6435]
[1765352283912,2.13288699,3320.3,3320.2,3.9204]
[1765352284107,2.13288903,3320.3,3320.2,3.9204]
[1765352285316,2.13288903,3320.3,3320.2,3.2078]
[1765352285518,1.4411,3320.1,3320.0,1.5863]
[1765352285912,5.0666,3320.5,3320.4,0.7126]
[1765352286111,6.04100573,3320.5,3320.4,0.7126]
[1765352286516,0.7433,3320.1,3320.0,1.9919]
[1765352287027,1.4411,3320.1,3320.0,0.1506]
[1765352287227,2.13268033,3320.1,3320.0,0.1506]
[1765352287719,2.13268033,3320.1,3320.0,0.8632]
[1765352288222,2.13268033,3320.1,3320.0,0.1506]
[1765352290420,2.13268033,3320.1,3320.0,0.8632]
[1765352290722,2.13268033,3320.1,3320.0,0.1506]
[1765352291223,1.4411,3320.1,3320.0,0.1506]
[1765352292621,1.4411,3320.1,3320.0,1.5525]
[1765352293020,1.4411,3320.1,3320.0,0.8668]
[1765352295221,1.4411,3320.1,3320.0,0.1506]
[1765352296423,2.13198111,3320.1,3320.0,0.1506]
[1765352296627,1.8702,3320.0,3319.9,0.00451779]
[1765352296813,1.40485949,3320.0,3319.9,1.40641779]
[1765352297016,2.13955949,3320.0,3319.9,1.40641779]
[1765352297213,1.4487,3320.0,3319.9,1.40641779]
[1765352297720,1.8702,3320.0,3319.9,1.40641779]
[1765352298118,1.4487,3320.0,3319.9,1.40641779]
[1765352298327,2.56113316,3320.0,3319.9,1.40641779]
[1765352298519,2.56113316,3320.0,3319.9,0.72071779]
[1765352298719,2.56113316,3320.0,3319.9,0.00451779]
[1765352302224,2.56113316,3320.0,3319.9,0.72071779]
[1765352302819,2.56113316,3320.0,3319.9,1.40641779]
[1765352303015,2.56113316,3320.0,3319.9,0.00451779]
[1765352303224,2.84386713,3320.0,3319.9,0.00451779]
[1765352303725,2.84386713,3320.0,3319.9,0.72071779]
[1765352305428,2.84386713,3320.0,3319.9,0.00451779]
[1765352311624,2.84377591,3320.0,3319.9,0.00451779]
[1765352317529,0.97357591,3320.0,3319.9,1.39821779]
[1765352317834,3.8874,3320.5,3320.4,1.3937]
[1765352318029,4.8616905,3320.5,3320.4,1.3937]
[1765352318426,4.86165592,3320.5,3320.4,1.3937]
[1765352319038,5.53485592,3320.5,3320.4,1.3937]
[1765352319240,5.95705592,3320.5,3320.4,0.6948]
[1765352319535,5.95705592,3320.5,3320.4,1.3937]
[1765352322138,5.53485592,3320.5,3320.4,1.3937]
[1765352322337,5.25205407,3320.5,3320.4,1.3937]
[1765352323337,0.69145407,3320.5,3320.4,2.47578753]
[1765352323533,0.00451779,3320.6,3320.5,1.94608]
[1765352330347,0.00118575,3320.8,3320.7,1.54427]
[1765352330645,0.00118575,3320.8,3320.7,2.47577753]
[1765352334657,0.00118575,3320.8,3320.7,2.47516959]
[1765352339461,0.00292429,3321.1,3321.0,1.99376]
[1765352339661,0.00292429,3321.1,3321.0,2.92465959]
[1765352340256,1.46922429,3321.1,3321.0,1.99376]
[1765352340559,0.00572148,3321.1,3321.0,1.95929402]
[1765352340958,0.00572148,3321.1,3321.0,2.89019361]
[1765352341454,1.47202148,3321.1,3321.0,2.89019361]
[1765352341654,1.47202148,3321.1,3321.0,2.48179361]
[1765352344263,1.47202148,3321.1,3321.0,0.15319402]
[1765352344760,1.47202148,3321.1,3321.0,2.48179361]
[1765352344955,0.00572148,3321.1,3321.0,2.89019361]
[1765352345463,1.47202148,3321.1,3321.0,2.48179361]
[1765352345655,0.74022148,3321.1,3321.0,2.48179361]
[1765352346060,0.00572148,3321.1,3321.0,2.89019361]
[1765352346859,0.57269,3322.5,3322.2,0.6829]
[1765352346860,3.2078,3322.3,3322.2,0.6829]
[1765352347062,1.4663,3322.1,3322.0,0.83341]
[1765352347255,2.15609506,3322.1,3322.0,0.15051]
[1765352347561,8.15609506,3322.1,3322.0,0.15051]
[1765352347862,8.15848541,3322.1,3322.0,0.15051]
[1765352348863,2.15848541,3322.1,3322.0,0.15051]
[1765352349961,3.089385,3322.1,3322.0,0.15051]
[1765352351668,2.15848541,3322.1,3322.0,0.15051]
[1765352355068,1.3973,3321.8,3321.7,3.21231779]
[1765352355872,1.3973,3321.8,3321.7,0.00451779]
[1765352356166,2.08707501,3321.8,3321.7,0.00451779]
[1765352358367,2.36962041,3321.8,3321.7,0.00451779]
[1765352358864,3.30052,3321.8,3321.7,0.00451779]
[1765352362370,3.30057524,3321.8,3321.7,0.00451779]
[1765352362561,2.36967565,3321.8,3321.7,0.00451779]
[1765352372182,2.36982738,3321.8,3321.7,0.00451779]
[1765352373685,2.36982738,3321.8,3321.7,0.74251779]
[1765352374186,2.36982738,3321.8,3321.7,0.00451779]
[1765352379485,0.97252738,3321.8,3321.7,1.47061779]
[1765352379888,2.42042738,3321.8,3321.7,1.47061779]
[1765352380092,2.42042738,3321.8,3321.7,0.74251779]
[1765352380481,2.42042738,3321.8,3321.7,0.00451779]
[1765352382990,2.42042738,3321.8,3321.7,0.74251779]
[1765352383287,1.67642738,3321.8,3321.7,1.47061779]
[1765352383487,2.42042738,3321.8,3321.7,1.47061779]
[1765352383887,2.42042738,3321.8,3321.7,0.00451779]
[1765352384089,2.42042738,3321.8,3321.7,0.74251779]
[1765352385391,2.42042738,3321.8,3321.7,0.00451779]
[1765352389495,2.42042738,3321.8,3321.7,1.47061779]
[1765352389885,2.42042738,3321.8,3321.7,1.62113779]
[1765352390294,2.13767501,3321.8,3321.7,1.62113779]
[1765352390691,0.68977501,3321.8,3321.7,1.62113779]
[1765352390995,1.876,3322.0,3321.9,1.4661]
[1765352391294,2.84913257,3322.0,3321.9,1.4661]
[1765352391895,2.84913257,3322.0,3321.9,0.738]
[1765352392093,2.84913257,3322.0,3321.9,1.4661]
[1765352393399,1.391,3321.8,3321.7,0.89163779]
[1765352393795,2.08131907,3321.8,3321.7,0.89163779]
[1765352394294,2.08131907,3321.8,3321.7,0.15503779]
[1765352395884,2.36395153,3321.8,3321.7,0.15503779]
[1765352400490,2.36395153,3321.8,3321.7,0.00451779]
[1765352401090,1.391,3321.1,3321.0,0.15318402]
[1765352401396,1.391,3321.1,3321.0,0.00263402]
[1765352401590,4.88121177,3321.1,3321.0,0.00263402]
[1765352401798,5.5707922,3321.1,3321.0,0.00263402]
[1765352405003,5.57040632,3321.1,3321.0,0.00263402]
[1765352406296,1.391,3320.8,3320.7,0.00451779]
[1765352406499,2.08058043,3320.8,3320.7,0.00451779]
[1765352406896,2.08058043,3320.8,3320.7,0.74111779]
[1765352407201,2.08058043,3320.8,3320.7,1.47168625]
[1765352407604,2.08058043,3320.8,3320.7,0.74458625]
[1765352408302,1.391,3320.8,3320.7,0.74458625]
[1765352408703,1.391,3320.8,3320.7,0.00798625]
[1765352409003,1.391,3320.8,3320.7,1.45578625]
[1765352409201,1.3629,3321.0,3320.9,1.4478]
[1765352409391,2.05065047,3321.0,3320.9,1.4478]
[1765352409591,2.45335047,3321.0,3320.9,1.4478]
[1765352410895,1.7656,3321.0,3320.9,0.717]
[1765352413598,0.6704,3321.0,3320.9,1.4478]
[1765352416110,1.7656,3321.0,3320.9,0.717]
[1765352416709,1.7656,3321.0,3320.9,1.4478]
[1765352417399,3.2078,3321.1,3321.0,2.02126]
[1765352417615,0.67491779,3321.4,3321.3,1.4478]
[1765352418106,1.36741779,3321.4,3321.3,1.4478]
[1765352418507,1.36741779,3321.4,3321.0,3.78126]
[1765352418508,1.3629,3321.1,3321.0,4.80616]
[1765352421017,1.36741779,3321.4,3321.3,1.4478]
[1765352423612,2.05883343,3321.4,3321.3,1.4478]
[1765352425217,2.05883343,3321.4,3321.3,0.717]
[1765352427207,1.4214,3321.1,3321.0,4.80516]
[1765352428217,0.7066,3321.1,3321.0,4.80516]
[1765352428723,2.1134348,3321.3,3321.2,1.4468]
[1765352428922,1.3986348,3321.3,3321.2,1.4468]
[1765352429521,0.7066,3321.3,3321.2,1.4468]
[1765352429726,0.69672711,3321.4,3321.3,1.4468]
[1765352430117,1.40332711,3321.4,3321.3,1.4468]
[1765352430719,2.11812711,3321.4,3321.3,1.4468]
[1765352432525,1.4214,3321.2,3321.1,0.89365]
[1765352433329,1.4214,3321.2,3321.1,0.15055]
[1765352434624,2.11357718,3321.2,3321.1,0.15055]
[1765352436234,2.11357718,3321.2,3321.1,1.59735]
[1765352436539,1.39877718,3321.2,3321.1,1.59735]
[1765352436737,0.7066,3321.2,3321.1,1.59735]
[1765352437035,1.39877718,3321.3,3321.2,1.4468]
[1765352437235,2.11357718,3321.3,3321.2,1.4468]
[1765352438437,1.39877718,3321.3,3321.2,1.4468]
[1765352440444,0.7066,3321.3,3321.2,1.4468]
[1765352440838,1.4214,3321.3,3321.2,1.4468]
[1765352442945,1.4214,3321.3,3321.2,0.7431]
[1765352443150,1.4214,3321.2,3321.1,0.89365]
[1765352443449,1.4214,3321.2,3321.1,1.59735]
[1765352444649,0.7066,3321.2,3321.1,1.59735]
[1765352445346,1.4214,3321.2,3321.1,1.59735]
[1765352445753,0.7066,3321.2,3321.1,1.59735]
[1765352446057,1.4214,3321.2,3321.1,1.59735]
[1765352447144,2.11599187,3321.2,3321.1,1.59735]
[1765352448250,0.69459187,3321.2,3321.1,1.59735]
[1765352448446,0.98185337,3321.4,3321.3,1.4468]
[1765352449151,2.40325337,3321.4,3321.3,0.7431]
[1765352449455,2.40325337,3321.4,3321.3,1.4468]
[1765352449846,2.40325337,3321.4,3321.3,0.7431]
[1765352452357,2.40325337,3321.4,3321.3,1.4468]
[1765352454054,1.68845337,3321.4,3321.3,1.4468]
[1765352455164,2.40305337,3321.4,3321.3,1.4468]
[1765352458753,0.69910966,3321.4,3321.3,2.52813717]
[1765352459666,1.44170966,3321.4,3321.3,2.52813717]
[1765352459958,0.69910966,3321.4,3321.3,2.52813717]
[1765352460166,0.00451779,3321.4,3321.3,2.52813717]
[1765352464258,0.00451779,3321.4,3321.3,1.59734]
[1765352464562,0.74499035,3322.1,3322.0,1.3925]
[1765352464861,0.74499035,3322.1,3322.0,2.32329717]
[1765352464862,1.72244844,3322.1,3322.0,2.32329717]
[1765352465060,0.69730305,3322.1,3322.0,2.88350717]
[1765352465259,0.00239035,3322.1,3322.0,2.88350717]
[1765352465661,0.74499035,3322.1,3322.0,2.88350717]
[1765352465956,1.45959035,3322.1,3322.0,2.47380717]
[1765352466163,1.45959035,3322.1,3322.0,0.83611]
[1765352466365,1.45959035,3322.1,3322.0,1.54301]
[1765352467165,1.45959035,3322.1,3322.0,2.71720717]
[1765352467166,0.00239035,3322.1,3322.0,2.71720717]
[1765352468263,1.34859035,3322.1,3322.0,2.71720717]
[1765352468565,1.34859035,3322.1,3322.0,2.47380717]
[1765352468758,0.00239035,3322.1,3322.0,2.68140717]
[1765352484368,0.72519035,3322.1,3322.0,1.75061]
[1765352484572,1.39779035,3322.1,3322.0,1.54301]
[1765352484773,1.39779035,3322.1,3322.0,0.83611]
[1765352484976,1.39779035,3322.1,3322.0,1.51651]
[1765352485372,1.39779035,3322.1,3322.0,0.83611]
[1765352485574,2.32858752,3322.1,3322.0,0.15051]
[1765352487181,3.02213556,3322.1,3322.0,0.15051]
[1765352489677,3.30462198,3322.1,3322.0,0.15051]
[1765352492281,1.3954,3321.8,3321.7,3.2078]
[1765352492680,2.08894804,3321.8,3321.7,3.2078]
[1765352492875,2.08894804,3321.8,3321.3,1.08133717]
[1765352492876,1.3954,3321.4,3321.3,4.04424]
[1765352493880,1.3954,3321.4,3321.3,4.72464]
[1765352494288,1.3954,3321.4,3321.3,3.35834]
[1765352494489,2.08888693,3321.4,3321.3,3.2078]
[1765352494685,0.4418,3321.0,3320.9,3.2078]
[1765352494987,1.8372,3321.0,3320.9,4.5741]
[1765352495183,1.3954,3321.0,3320.9,4.5741]
[1765352495689,1.8372,3321.0,3320.9,3.8937]
[1765352495988,1.8372,3321.0,3320.9,3.2078]
[1765352497790,1.8372,3321.0,3320.9,3.8937]
[1765352497992,1.8372,3321.0,3320.9,4.5741]
[1765352499194,2.76799717,3321.0,3320.9,3.8937]
[1765352499885,2.76799717,3321.0,3320.9,3.2078]
[1765352500888,1.3954,3320.8,3320.7,0.84445625]
[1765352501089,1.3954,3320.8,3320.7,0.15855625]
[1765352502795,0.93079717,3321.4,3320.9,1.3663]
[1765352502993,1.3954,3321.0,3320.9,1.3663]
[1765352503988,0.7228,3321.0,3320.9,1.3663]
[1765352504700,1.3954,3321.0,3320.9,1.3663]
[1765352506394,0.7228,3321.0,3320.9,1.3663]
[1765352506698,0.93079717,3321.4,3320.9,1.3663]
[1765352506895,0.93079717,3321.4,3320.7,1.08935342]
[1765352506896,2.32619717,3321.4,3321.3,0.6859]
[1765352507089,3.01697551,3321.4,3320.7,1.08935342]
[1765352507290,2.32619717,3321.4,3320.7,1.08935342]
[1765352508295,1.3954,3320.8,3320.7,0.83895625]
[1765352508499,1.3954,3320.8,3320.7,1.52485625]
[1765352510903,1.3954,3320.8,3320.7,0.84445625]
[1765352511599,1.3954,3321.0,3320.9,1.3663]
[1765352511901,0.7228,3321.0,3320.9,1.3663]
[1765352512091,0.93079717,3321.4,3320.9,1.3663]
[1765352512289,0.7228,3321.0,3320.9,1.3663]
[1765352512495,1.3954,3321.0,3320.9,1.3663]
[1765352516606,1.8357,3321.0,3320.9,1.3663]
[1765352516806,1.4032,3320.8,3320.7,1.56925625]
[1765352517003,1.8435,3321.0,3320.9,1.4107]
[1765352519710,2.53642005,3321.0,3320.9,1.4107]
[1765352520409,1.4032,3320.8,3320.7,0.83025625]
[1765352520609,1.4032,3320.8,3320.7,0.15855625]
[1765352521205,1.4032,3320.8,3320.7,0.83025625]
[1765352522312,2.09676681,3320.8,3320.7,0.83025625]
[1765352522606,2.09676681,3320.8,3320.7,1.56925625]
[1765352523109,3.6496,3321.5,3320.7,1.56925625]
[1765352523312,2.37937238,3321.4,3321.3,0.6717]
[1765352523504,2.37937238,3321.4,3320.7,0.15855625]
[1765352523803,2.37937238,3321.3,3321.2,0.6717]
[1765352524904,0.97617238,3321.3,3321.2,1.4107]
[1765352525113,1.68576709,3321.3,3321.2,1.4107]
[1765352525313,2.37937238,3321.3,3321.2,1.4107]
[1765352528308,2.37937238,3321.3,3321.2,0.6717]
[1765352528703,1.8465,3321.0,3320.9,4.04076]
[1765352528910,1.8465,3321.0,3320.9,4.73216]
[1765352530116,3.6496,3321.5,3320.9,4.73216]
[1765352530412,0.7352,3321.0,3320.9,4.73216]
[1765352531412,3.6496,3321.5,3320.9,4.73216]
[1765352531715,0.7352,3321.0,3320.9,4.73216]
[1765352532414,3.6496,3321.5,3320.9,4.73216]
[1765352532612,0.7352,3321.0,3320.9,4.73216]
[1765352537516,1.8465,3321.0,3320.9,3.35836]
[1765352537712,1.8465,3321.0,3320.9,4.04076]
[1765352537912,1.8465,3321.0,3320.9,4.73216]
[1765352539216,2.53973096,3321.0,3320.9,4.04076]